bitfinex-derivatives/quotes_SOLF0:USTF0_20240830
["timestamp","ask_amount","ask_price","bid_price","bid_amount"]
[1725027729672,0.04628342,137.93,137.9,0.05428011]
[1725027729879,41.78628342,137.93,137.9,0.05428011]
[1725027730182,8.9,137.98,137.79,46.78855721]
[1725027730183,41.74,137.91,137.79,46.78855721]
[1725027730481,41.74,137.91,137.79,43.1255]
[1725027730482,50.64,137.91,137.79,43.1255]
[1725027730773,41.74,137.89,137.79,5.01065423]
[1725027730975,0.05075302,137.85,137.83,0.05210144]
[1725027731978,3.67745302,137.85,137.83,0.05210144]
[1725027732173,0.05075302,137.85,137.83,0.05210144]
[1725027733276,0.05075302,137.85,137.84,3.6268]
[1725027733481,1.3258,137.92,137.84,41.74]
[1725027733672,4.9507,137.92,137.84,41.74]
[1725027733872,1.3258,137.92,137.83,1.415]
[1725027734581,0.04700707,137.89,137.86,0.05455349]
[1725027734785,0.04847811,137.89,137.88,3.6257]
[1725027734986,0.04847811,137.89,137.86,3.66329859]
[1725027735282,0.04847811,137.89,137.86,0.04628337]
[1725027735583,0.04847811,137.89,137.88,3.6257]
[1725027735880,1.35,137.97,137.92,3.6245]
[1725027736081,1.35,137.97,137.89,3.67067046]
[1725027736285,1.35,137.97,137.87,41.74]
[1725027736593,41.74,138.04,137.94,41.74]
[1725027736786,0.04991895,138.0,137.98,0.04722593]
[1725027736983,0.05369736,138.0,137.99,3.6227]
[1725027737284,0.05369736,138.0,137.99,7.19967688]
[1725027737475,41.74,138.09,137.98,0.05353803]
[1725027737676,1.3749,138.08,137.98,3.65559573]
[1725027737885,1.3749,138.08,137.96,50.64]
[1725027738086,3.6208,138.07,138.02,3.622]
[1725027738300,41.74,138.06,137.96,3.57770147]
[1725027738582,41.74,138.06,138.0,0.05548805]
[1725027738583,0.04809252,138.02,138.0,0.05548805]
[1725027739676,3.6223,138.01,138.0,0.05548805]
[1725027740083,41.74,138.02,137.89,50.64]
[1725027740287,41.74,137.99,137.9,1.3114045]
[1725027740479,10.2207,138.03,137.87,44.4149]
[1725027740480,41.74,138.01,137.87,44.4149]
[1725027740688,5.0247,138.02,137.97,3.6232]
[1725027740887,1.4025,138.02,137.94,3.65470695]
[1725027741185,1.4025,138.02,137.98,3.6231]
[1725027741186,0.05531606,137.99,137.98,3.6231]
[1725027741488,0.05531606,137.99,137.97,0.05476855]
[1725027741682,0.05531606,137.99,137.98,3.6231]
[1725027742485,0.05531606,137.99,137.97,0.05476855]
[1725027742884,41.79531606,137.99,137.97,0.05476855]
[1725027743485,3.6231,137.98,137.97,0.05476855]
[1725027743783,0.05531606,137.99,137.97,0.05476855]
[1725027745688,0.05531606,137.99,137.97,3.67796855]
[1725027746183,0.05531606,137.99,137.97,0.05476855]
[1725027747385,3.67831606,137.99,137.97,0.05476855]
[1725027747583,0.05531606,137.99,137.97,0.05476855]
[1725027747779,3.6231,137.98,137.97,0.05476855]
[1725027748084,41.79531606,137.99,137.87,43.1204]
[1725027748291,1.4167,138.0,137.88,11.92596192]
[1725027748491,41.74,137.97,137.88,1.4144]
[1725027748782,10.6167,138.0,137.88,1.4144]
[1725027748783,3.6233,137.98,137.94,3.6241]
[1725027748989,0.05277753,137.97,137.95,0.05245951]
[1725027749385,3.67627753,137.97,137.95,0.05245951]
[1725027749587,0.05277753,137.97,137.95,0.05245951]
[1725027749784,3.67637753,137.97,137.95,0.05245951]
[1725027749982,0.05277753,137.97,137.95,0.05245951]
[1725027751888,0.05277753,137.97,137.96,3.6236]
[1725027752583,0.05277753,137.97,137.96,7.25429628]
[1725027752983,1.4121,138.07,137.96,3.63069628]
[1725027753181,44.4238,138.06,137.94,41.74]
[1725027753387,41.74,138.03,137.92,50.94]
[1725027753587,11.8838,138.06,137.88,43.1544]
[1725027753588,41.74,138.01,137.89,9.2]
[1725027753788,41.74,138.01,137.9,43.05129941]
[1725027753985,0.05032003,137.97,137.94,0.05282913]
[1725027754185,0.04804545,137.97,137.94,0.05037702]
[1725027755083,0.04804545,137.97,137.94,3.67447702]
[1725027755278,0.04804545,137.97,137.94,0.05037702]
[1725027755686,3.6239,137.96,137.94,0.05037702]
[1725027755887,41.78804545,137.97,137.94,0.05037702]
[1725027756082,3.6239,137.95,137.94,0.05037702]
[1725027756887,1.2883,137.96,137.89,3.6254]
[1725027756888,3.6245,137.93,137.89,3.6254]
[1725027757281,41.74,137.94,137.87,3.6083961]
[1725027757484,41.74,137.94,137.87,7.2488891]
[1725027757691,41.74,137.94,137.87,3.626]
[1725027757992,0.05376654,137.92,137.89,0.05068789]
[1725027758203,3.6251,137.91,137.89,0.05068789]
[1725027758493,41.79376654,137.92,137.89,0.05068789]
[1725027758695,0.05376654,137.92,137.89,0.05068789]
[1725027761086,3.67866654,137.92,137.89,0.05068789]
[1725027761287,0.05376654,137.92,137.89,0.05068789]
[1725027762091,0.05376654,137.92,137.9,3.6252]
[1725027762288,0.05376654,137.92,137.89,0.05068789]
[1725027763102,0.05376654,137.92,137.91,3.625]
[1725027763498,70.72,138.02,137.94,3.6241]
[1725027763499,3.6232,137.98,137.94,3.6241]
[1725027763701,1.4173,138.01,137.93,3.58184365]
[1725027763895,1.4173,138.01,137.92,41.74]
[1725027764100,3.623,137.99,137.92,41.74]
[1725027764399,41.74,138.06,137.94,41.74]
[1725027764704,41.74,138.06,137.99,0.05446359]
[1725027764705,0.04741272,138.01,137.99,0.05446359]
[1725027764889,0.04594544,138.01,137.99,0.05446359]
[1725027765796,0.04594544,138.01,137.83,10.55381981]
[1725027765797,41.74,138.01,137.89,44.4409]
[1725027766101,50.94,138.03,137.91,41.74]
[1725027766296,3.70614268,138.02,137.91,41.74]
[1725027766501,50.94,138.03,137.91,41.74]
[1725027766694,0.04639615,137.98,137.96,0.04755405]
[1725027766892,0.04915398,137.98,137.96,0.04755405]
[1725027767100,3.67245398,137.98,137.96,0.04755405]
[1725027767300,0.04915398,137.98,137.96,0.04755405]
[1725027768399,0.04915398,137.98,137.97,3.6234]
[1725027770103,2.7051,138.06,138.01,3.6222]
[1725027770104,6.3262,138.06,138.01,3.6222]
[1725027770304,6.3262,138.06,137.96,41.74]
[1725027770501,1.2921,138.06,137.98,41.74]
[1725027770695,53.6389,138.12,138.0,41.74]
[1725027770894,1.3024,138.11,138.0,45.39236621]
[1725027771089,0.05085138,138.07,138.04,0.04698158]
[1725027772289,3.67165138,138.07,138.04,0.04698158]
[1725027773199,0.05085138,138.07,138.04,0.04698158]
[1725027773600,0.05085138,138.07,138.06,3.621]
[1725027775206,0.05085138,138.07,138.05,3.6212]
[1725027776293,0.05085138,138.07,138.04,0.04698158]
[1725027777498,0.05085138,138.07,138.05,3.6211]
[1725027777894,0.05085138,138.07,138.06,3.621]
[1725027778408,0.05085138,138.07,138.04,0.04698158]
[1725027778705,0.05085138,138.07,138.04,3.66838158]
[1725027779302,0.05085138,138.07,138.05,3.6212]
[1725027779898,0.05085138,138.07,138.04,3.66838158]
[1725027780098,0.05085138,138.07,138.04,0.04698158]
[1725027780512,41.79085138,138.07,138.04,0.04698158]
[1725027780704,3.6213,138.05,138.04,0.04698158]
[1725027781705,41.79085138,138.07,138.04,0.04698158]
[1725027783303,0.05085138,138.07,138.04,0.04698158]
[1725027784010,3.67175138,138.07,138.04,3.66848158]
[1725027784716,0.05085138,138.07,138.04,0.04698158]
[1725027785008,0.05085138,138.07,138.06,3.621]
[1725027785705,0.05085138,138.07,138.04,0.04698158]
[1725027786518,34.75,138.06,138.04,0.04698158]
[1725027786803,34.75,138.06,137.97,1.3438]
[1725027786804,34.75,138.06,138.0,3.6224]
[1725027787011,34.75,138.06,137.97,4.91104407]
[1725027787201,34.75,138.07,137.97,36.0938]
[1725027787399,34.75,138.05,137.96,1.2908]
[1725027787601,0.04709098,138.02,137.99,0.05215623]
[1725027787801,3.6227,138.0,137.99,0.04876776]
[1725027788003,41.76,138.0,137.93,3.54986584]
[1725027788412,41.76,138.0,137.94,3.624]
[1725027788413,3.623,137.99,137.94,3.624]
[1725027788721,3.623,137.99,137.93,3.70360695]
[1725027789011,3.623,137.99,137.9,9.08]
[1725027789012,0.04751949,137.97,137.95,0.04658675]
[1725027789210,0.05434546,137.97,137.95,0.04658675]
[1725027790113,0.05434546,137.97,137.96,3.6234]
[1725027790611,41.76,138.1,137.96,41.76]
[1725027790819,1.3513,138.08,137.98,41.76]
[1725027791013,3.6209,138.07,138.02,3.622]
[1725027791511,1.3513,138.08,138.01,3.58080543]
[1725027791709,0.04966353,138.06,138.04,3.6214]
[1725027792112,0.04966353,138.06,138.05,3.6213]
[1725027794816,1.3844,138.11,138.02,45.46453201]
[1725027794817,41.76,138.14,138.09,3.6202]
[1725027795011,3.619,138.14,138.05,41.76]
[1725027795415,3.619,138.14,138.09,3.6201]
[1725027795709,3.619,138.14,138.1,0.05448546]
[1725027796013,0.05431905,138.13,138.1,0.05448546]
[1725027797510,41.76,138.12,138.02,3.56626173]
[1725027797717,3.6204,138.09,138.05,3.6211]
[1725027797908,45.44283225,138.12,138.0,41.76]
[1725027798106,45.44283225,138.12,138.03,3.56254319]
[1725027798314,0.05546668,138.09,138.06,0.05210269]
[1725027798615,1.42606668,138.09,138.06,0.05210269]
[1725027799006,5.00417631,138.09,138.03,3.6216]
[1725027799213,43.1318,138.08,137.97,2.5853]
[1725027799416,3.6214,138.05,137.97,2.5853]
[1725027799614,43.1318,138.08,137.97,6.12757062]
[1725027799915,43.1318,138.08,137.97,2.5853]
[1725027800114,0.04727343,138.04,138.02,3.6219]
[1725027800314,0.04727343,138.04,138.01,0.05351536]
[1725027801214,0.04727343,138.04,138.01,3.67581536]
[1725027801412,0.04727343,138.04,138.01,0.05351536]
[1725027802520,0.04727343,138.04,138.03,3.6218]
[1725027803310,51.8024,138.13,138.07,3.6206]
[1725027803512,3.6199,138.11,138.07,3.6206]
[1725027803813,3.57081274,138.12,138.06,3.6209]
[1725027804014,3.6198,138.11,138.02,41.76]
[1725027804206,0.05258274,138.08,138.05,0.04635683]
[1725027804411,0.05258274,138.08,138.07,3.6206]
[1725027804716,0.05258274,138.08,138.05,0.04635683]
[1725027805015,0.05258274,138.08,138.05,3.66745683]
[1725027805313,3.6209,138.07,138.05,0.04635683]
[1725027805523,0.05258274,138.08,138.05,0.04635683]
[1725027806513,41.81258274,138.08,138.05,0.04635683]
[1725027806708,1.4139,138.07,138.05,0.04635683]
[1725027806907,3.6222,138.02,137.97,6.23001953]
[1725027807114,3.6222,138.02,137.94,41.76]
[1725027807115,43.1533,138.06,137.92,41.76]
[1725027807312,51.8533,138.06,137.93,1.31112287]
[1725027807618,3.622,138.03,137.93,1.31112287]
[1725027808018,0.04688935,137.99,137.97,0.04997697]
[1725027808213,0.04688935,137.99,137.98,3.6231]
[1725027808416,0.04688935,137.99,137.97,0.04997697]
[1725027809414,0.04688935,137.99,137.98,3.6231]
[1725027809819,1.4139,138.07,137.97,41.80997697]
[1725027810015,1.4139,138.07,137.97,41.76]
[1725027810220,3.6213,138.05,138.01,3.6221]
[1725027810417,1.4139,138.07,137.97,41.76]
[1725027810624,3.6207,138.08,138.03,3.6216]
[1725027810825,3.6207,138.08,138.0,41.76]
[1725027811015,0.05012097,138.07,138.04,0.04992477]
[1725027811218,0.05012097,138.07,138.05,3.621]
[1725027811429,0.05012097,138.07,138.04,0.04992477]
[1725027812720,0.05012097,138.07,138.04,3.67132477]
[1725027812919,0.05012097,138.07,138.04,0.04992477]
[1725027815018,1.3764,138.16,138.05,41.76]
[1725027816127,3.67126799,138.12,138.09,3.67329934]
[1725027816717,0.05166799,138.12,138.09,0.05309934]
[1725027816921,3.6197,138.11,138.09,0.05309934]
[1725027817126,0.05166799,138.12,138.09,0.05309934]
[1725027818522,41.81166799,138.12,138.09,0.05309934]
[1725027818722,45.38,138.1,138.09,0.05309934]
[1725027818919,41.76,138.1,138.0,12.0021676]
[1725027819219,41.76,138.1,138.0,3.6621676]
[1725027819419,3.6207,138.08,138.04,3.6214]
[1725027819625,41.76,138.1,138.0,3.6621676]
[1725027819822,3.6209,138.07,138.04,3.6215]
[1725027820031,0.0534294,138.07,138.04,0.05120291]
[1725027820423,3.6212,138.06,138.04,0.05120291]
[1725027821026,0.0534294,138.07,138.04,0.05120291]
[1725027821530,0.0534294,138.07,138.04,3.67270291]
[1725027822223,0.0534294,138.07,138.04,0.05120291]
[1725027822524,3.76312404,138.07,138.04,0.05120291]
[1725027822726,3.6213,138.05,138.04,0.05120291]
[1725027823622,0.0534294,138.07,138.04,0.05120291]
[1725027824430,0.0534294,138.07,138.05,3.6211]
[1725027824929,0.0534294,138.07,138.04,3.67260291]
[1725027825132,0.0534294,138.07,138.04,0.05120291]
[1725027826126,0.0534294,138.07,138.04,3.67270291]
[1725027826328,0.0534294,138.07,138.04,0.05120291]
[1725027826728,0.0534294,138.07,138.04,3.67260291]
[1725027826931,0.0534294,138.07,138.04,0.05120291]
[1725027827438,3.6213,138.05,138.04,0.05120291]
[1725027828636,34.74,138.07,137.97,2.6769]
[1725027828841,34.74,138.07,137.98,3.69857274]
[1725027829138,3.6222,138.02,137.99,3.6227]
[1725027829538,36.1498,138.09,137.98,3.69857274]
[1725027829838,0.05399804,138.05,138.02,0.04718507]
[1725027830235,3.6218,138.03,138.02,0.04718507]
[1725027831532,0.05399804,138.05,138.02,0.04718507]
[1725027832033,3.67549804,138.05,138.02,3.66918507]
[1725027832238,0.05399804,138.05,138.02,3.66918507]
[1725027832634,3.67549804,138.05,138.02,0.04718507]
[1725027832834,0.05399804,138.05,138.02,0.04718507]
[1725027833028,0.05399804,138.05,138.02,3.66908507]
[1725027833231,3.67539804,138.05,138.02,3.66908507]
[1725027834431,3.67539804,138.05,138.03,3.6218]
[1725027834834,3.67539804,138.05,138.02,0.04718507]
[1725027835030,3.67539804,138.05,138.02,3.66918507]
[1725027835236,0.05399804,138.05,138.02,0.04718507]
[1725027835443,0.05399804,138.05,138.03,3.6217]
[1725027836135,0.05399804,138.05,138.02,0.04718507]
[1725027836136,0.05399804,138.05,138.04,3.6215]
[1725027837144,3.70509005,138.12,138.07,3.6207]
[1725027837645,3.6201,138.1,138.08,3.6205]
[1725027838048,3.67011722,138.1,138.08,3.67458708]
[1725027838252,3.67011722,138.1,138.08,0.05408708]
[1725027838752,3.6202,138.09,138.08,0.05408708]
[1725027839143,0.05001722,138.1,138.08,0.05408708]
[1725027839349,0.05001722,138.1,138.08,3.67448708]
[1725027839651,0.05001722,138.1,138.08,0.05408708]
[1725027841060,3.6202,138.09,138.08,0.05408708]
[1725027842256,3.6211,138.06,137.99,9.3817]
[1725027842550,3.6211,138.06,137.99,2.7805]
[1725027842748,3.6213,138.05,137.99,2.7805]
[1725027842948,3.6213,138.05,138.02,3.622]
[1725027843153,3.67118548,138.05,138.02,3.6713425]
[1725027843654,3.6216,138.04,138.02,0.0493425]
[1725027843848,0.04988548,138.05,138.02,0.0493425]
[1725027844154,0.04988548,138.05,138.03,3.6216]
[1725027844455,0.04988548,138.05,138.02,0.0493425]
[1725027844650,0.04988548,138.05,138.04,3.6215]
[1725027845152,3.62,138.1,138.06,3.6208]
[1725027845448,3.62,138.1,138.03,34.74]
[1725027845449,3.62,138.1,138.07,3.56693285]
[1725027845655,3.62,138.1,138.03,44.1166]
[1725027845955,37.5074,138.15,138.05,34.74]
[1725027846149,37.5074,138.15,138.08,0.0500114]
[1725027846369,0.04665964,138.1,138.08,0.0500114]
[1725027846851,0.04665964,138.1,138.08,3.6703114]
[1725027847051,0.04665964,138.1,138.08,0.0500114]
[1725027847658,0.04665964,138.1,138.09,3.6202]
[1725027848854,1.3516,138.18,138.11,3.6195]
[1725027849357,1.3516,138.18,138.09,34.74]
[1725027849857,1.3516,138.18,138.12,34.74]
[1725027850059,0.04674286,138.15,138.14,34.74]
[1725027850260,1.3119,138.24,138.14,34.74]
[1725027850465,3.6168,138.23,138.16,34.74]
[1725027850658,1.3119,138.24,138.18,3.6177]
[1725027850854,1.3119,138.24,138.13,2.6528]
[1725027850855,3.6168,138.22,138.16,34.74]
[1725027851058,1.3119,138.24,138.16,34.74]
[1725027851253,0.05017235,138.21,138.2,3.6172]
[1725027851451,0.05017235,138.21,138.2,7.18036156]
[1725027852360,2.7674,138.29,138.24,3.6163]
[1725027852558,34.74,138.32,138.21,34.74]
[1725027852859,34.74,138.32,138.21,44.0616]
[1725027853153,3.6148,138.3,138.22,7.98]
[1725027853356,3.6148,138.3,138.25,0.04772974]
[1725027853560,0.05157277,138.27,138.25,3.66362974]
[1725027853856,0.05502256,138.27,138.25,0.04772974]
[1725027854960,34.79502256,138.27,138.25,0.04772974]
[1725027855463,0.05502256,138.27,138.25,0.04772974]
[1725027855852,0.05502256,138.27,138.25,3.66362974]
[1725027856760,0.05502256,138.27,138.25,0.04772974]
[1725027857758,0.05502256,138.27,138.25,3.66362974]
[1725027858058,0.05502256,138.27,138.25,0.04772974]
[1725027858561,0.05502256,138.27,138.26,3.6158]
[1725027860157,7.17040645,138.33,138.26,34.74]
[1725027860158,3.6141,138.33,138.26,34.74]
[1725027860357,3.614,138.33,138.26,34.74]
[1725027860751,38.40413101,138.36,138.26,34.74]
[1725027861066,34.74,138.39,138.28,34.74]
[1725027861262,0.0528827,138.35,138.33,3.6139]
[1725027861469,0.0528827,138.35,138.33,3.59400065]
[1725027861667,0.0528827,138.35,138.33,7.20790065]
[1725027862156,0.0528827,138.35,138.33,3.59400065]
[1725027862361,0.0528827,138.35,138.32,0.04815433]
[1725027862562,0.0528827,138.35,138.32,3.65299988]
[1725027862761,0.0528827,138.35,138.32,0.04815433]
[1725027863067,0.0528827,138.35,138.33,3.6138]
[1725027863360,0.0528827,138.35,138.32,0.04815433]
[1725027863564,0.0528827,138.35,138.33,3.6139]
[1725027863965,0.0528827,138.35,138.33,7.16035355]
[1725027864359,3.6662827,138.35,138.33,3.54645355]
[1725027864561,3.6662827,138.35,138.32,0.04815433]
[1725027864562,0.0528827,138.35,138.32,0.04815433]
[1725027864864,3.63835989,138.35,138.32,0.04815433]
[1725027865163,34.7928827,138.35,138.32,0.04815433]
[1725027865370,3.55115084,138.34,138.32,0.04815433]
[1725027865664,0.0528827,138.35,138.33,34.74]
[1725027865967,0.0528827,138.35,138.34,3.6137]
[1725027866473,3.63925158,138.49,138.34,46.18843918]
[1725027866661,34.74,138.5,138.39,34.74]
[1725027866863,3.6096,138.5,138.45,3.6107]
[1725027867071,3.6096,138.5,138.45,3.70175437]
[1725027867263,0.04702963,138.49,138.46,0.04648072]
[1725027868970,0.04702963,138.49,138.48,3.61]
[1725027869169,0.04702963,138.49,138.46,0.04648072]
[1725027869371,0.04702963,138.49,138.46,3.6610201]
[1725027869671,0.04702963,138.49,138.47,3.6101]
[1725027869871,0.04702963,138.49,138.46,3.6610201]
[1725027870664,0.04702963,138.49,138.48,3.61]
[1725027873770,0.04702963,138.49,138.46,0.04648072]
[1725027873968,0.04702963,138.49,138.4,34.74]
[1725027874166,3.65037128,138.5,138.44,3.6108]
[1725027874475,3.65037128,138.5,138.4,38.34850425]
[1725027874476,3.66408634,138.51,138.42,34.74]
[1725027874670,42.6,138.53,138.42,34.74]
[1725027874873,0.04721031,138.49,138.46,0.05229967]
[1725027876067,3.65721031,138.49,138.46,0.05229967]
[1725027876272,0.04721031,138.49,138.46,0.05229967]
[1725027876774,0.04721031,138.49,138.47,3.6102]
[1725027876972,0.04721031,138.49,138.46,0.05229967]
[1725027878169,0.04721031,138.49,138.46,3.66279967]
[1725027878170,3.65711031,138.49,138.46,3.66279967]
[1725027878369,3.65711031,138.49,138.46,0.05229967]
[1725027878370,0.04721031,138.49,138.46,0.05229967]
[1725027878779,0.04721031,138.49,138.38,43.9284]
[1725027879065,3.6788568,138.48,138.38,43.9284]
[1725027879266,3.6113,138.44,138.38,47.55904946]
[1725027879675,2.6633,138.47,138.38,47.55904946]
[1725027879979,0.0546522,138.42,138.4,0.04835742]
[1725027880174,0.05165809,138.42,138.41,3.6117]
[1725027880473,0.05165809,138.42,138.4,0.04835742]
[1725027881076,0.05165809,138.42,138.41,3.66531305]
[1725027881479,0.05165809,138.42,138.4,3.66025742]
[1725027881871,0.05165809,138.42,138.4,0.04835742]
[1725027882174,0.05165809,138.42,138.4,3.74761189]
[1725027882379,3.66335809,138.42,138.4,0.04835742]
[1725027882574,0.05165809,138.42,138.4,3.70986641]
[1725027882776,0.05165809,138.42,138.4,0.04835742]
[1725027883878,0.05165809,138.42,138.41,3.6119]
[1725027884696,0.05165809,138.42,138.41,38.3519]
[1725027885084,34.74,138.51,138.41,34.74]
[1725027885383,34.74,138.51,138.43,34.74]
[1725027885384,3.61,138.48,138.43,34.74]
[1725027885574,9.2826,138.52,138.44,3.6109]
[1725027885778,3.59696782,138.51,138.43,34.74]
[1725027886075,0.05428262,138.48,138.46,0.05374748]
[1725027886475,3.6103,138.47,138.46,0.05374748]
[1725027886685,0.05428262,138.48,138.46,0.05374748]
[1725027887475,3.6103,138.47,138.46,0.05374748]
[1725027887872,34.74,138.49,138.42,3.70096608]
[1725027888171,9.2826,138.52,138.36,43.9812]
[1725027888172,34.74,138.47,138.36,43.9812]
[1725027888370,1.3021,138.46,138.38,34.74]
[1725027888578,3.611,138.45,138.41,3.6116]
[1725027888779,3.611,138.45,138.38,34.74]
[1725027888981,0.05251926,138.44,138.42,0.05505284]
[1725027889382,3.66371926,138.44,138.42,0.05505284]
[1725027889576,0.05251926,138.44,138.42,0.05505284]
[1725027889882,0.05251926,138.44,138.42,3.66645284]
[1725027890278,0.05251926,138.44,138.42,0.05505284]
[1725027890481,3.66371926,138.44,138.42,0.05505284]
[1725027891078,3.6113,138.43,138.42,0.05505284]
[1725027891579,34.79251926,138.44,138.34,34.74]
[1725027891877,38.29930887,138.44,138.34,34.74]
[1725027892086,1.3967,138.43,138.36,3.613]
[1725027892678,3.6124,138.4,138.38,0.04951735]
[1725027893173,0.04790131,138.41,138.38,3.66211735]
[1725027893778,0.04790131,138.41,138.38,0.04951735]
[1725027894187,3.6124,138.39,138.38,0.04951735]
[1725027900086,38.40381915,138.4,138.3,34.74]
[1725027900283,38.40381915,138.4,138.29,2.7078]
[1725027900284,34.74,138.4,138.29,2.7078]
[1725027900591,34.74,138.4,138.26,34.74]
[1725027900592,34.74,138.38,138.26,34.74]
[1725027900791,38.29254848,138.4,138.26,38.42729534]
[1725027900792,34.74,138.36,138.26,38.42729534]
[1725027900992,0.04930606,138.32,138.3,0.05561317]
[1725027902396,3.6145,138.31,138.3,0.05561317]
[1725027903690,0.04930606,138.32,138.3,0.05561317]
[1725027904888,0.04930606,138.32,138.31,3.6145]
[1725027905884,3.6127,138.38,138.35,3.6133]
[1725027906190,3.6127,138.38,138.31,34.74]
[1725027906694,36.0365,138.39,138.29,38.32320388]
[1725027906992,3.6137,138.34,138.33,0.05444114]
[1725027907189,0.04661032,138.35,138.32,0.05492454]
[1725027907190,34.74,138.33,138.32,0.05492454]
[1725027907392,0.05523548,138.34,138.31,3.66653756]
[1725027907594,0.05523548,138.34,138.31,3.66052135]
[1725027907595,3.66014896,138.34,138.31,3.66052135]
[1725027907794,0.04634896,138.34,138.31,0.04612135]
[1725027908094,0.04634896,138.34,138.33,3.614]
[1725027910986,7.94,138.41,138.32,34.74]
[1725027911193,2.7251,138.43,138.36,34.74]
[1725027911392,1.348,138.43,138.4,3.612]
[1725027911594,1.348,138.43,138.36,34.74]
[1725027911801,1.348,138.43,138.34,34.74]
[1725027911999,0.05471786,138.4,138.37,0.05209755]
[1725027912395,0.05471786,138.4,138.39,3.6124]
[1725027912699,0.05471786,138.4,138.39,3.64811781]
[1725027913004,3.66701786,138.4,138.37,0.05209755]
[1725027913295,0.05471786,138.4,138.37,0.05209755]
[1725027913495,3.6126,138.39,138.37,0.05209755]
[1725027914297,3.6126,138.38,138.37,0.05209755]
[1725027914687,0.05471786,138.4,138.37,0.05209755]
[1725027914887,0.05471786,138.4,138.38,3.61540659]
[1725027915093,0.05471786,138.4,138.37,0.05209755]
[1725027915296,0.05471786,138.4,138.38,3.6446709]
[1725027915502,0.05471786,138.4,138.37,0.05209755]
[1725027915696,0.05471786,138.4,138.38,3.58433585]
[1725027915894,0.05471786,138.4,138.37,0.05209755]
[1725027916098,0.05471786,138.4,138.37,3.66489755]
[1725027916500,0.05471786,138.4,138.38,3.53231041]
[1725027916710,0.05471786,138.4,138.38,3.6126]
[1725027916898,0.05471786,138.4,138.39,3.64647734]
[1725027917103,0.05471786,138.4,138.38,3.6126]
[1725027917501,0.05471786,138.4,138.37,0.05209755]
[1725027917699,3.6126,138.38,138.37,0.05209755]
[1725027918106,3.65904696,138.39,138.37,0.05209755]
[1725027918107,7.27154696,138.39,138.37,0.05209755]
[1725027918403,0.05471786,138.4,138.37,0.05209755]
[1725027918799,3.6126,138.38,138.37,0.05209755]
[1725027919199,0.05471786,138.4,138.37,0.05209755]
[1725027919400,3.6125,138.39,138.37,0.05209755]
[1725027920099,0.05471786,138.4,138.37,34.79209755]
[1725027920497,0.05471786,138.4,138.39,3.6124]
[1725027920702,0.05471786,138.4,138.39,7.23532962]
[1725027920901,0.05471786,138.4,138.37,0.05209755]
[1725027921611,0.05471786,138.4,138.39,3.6124]
[1725027923507,0.05471786,138.4,138.38,7.27896854]
[1725027923711,0.05471786,138.4,138.37,0.05209755]
[1725027925014,3.6126,138.39,138.37,0.05209755]
[1725027925219,0.05471786,138.4,138.37,0.05209755]
[1725027925723,3.6126,138.38,138.37,0.05209755]
[1725027926018,3.63258468,138.38,138.27,34.74]
[1725027926221,34.74,138.39,138.27,34.74]
[1725027926222,36.0814,138.37,138.28,3.5281876]
[1725027926428,37.4762,138.37,138.27,34.74]
[1725027927128,0.05274112,138.33,138.31,0.04842656]
[1725027927632,3.6142,138.32,138.31,0.04842656]
[1725027928017,34.79274112,138.33,138.31,0.04842656]
[1725027928018,0.05274112,138.33,138.31,0.04842656]
[1725027932533,0.05274112,138.33,138.32,34.74]
[1725027932928,0.05274112,138.33,138.31,0.04842656]
[1725027933627,0.05274112,138.33,138.32,3.6142]
[1725027933829,1.3414,138.4,138.32,34.74]
[1725027934028,1.3414,138.4,138.35,34.74]
[1725027934639,1.3414,138.4,138.35,38.40733576]
[1725027934828,0.05409006,138.39,138.36,3.66239654]
[1725027935033,0.05409006,138.39,138.36,0.04929654]
[1725027935431,0.05409006,138.39,138.37,3.6127]
[1725027935631,0.05409006,138.39,138.36,0.04929654]
[1725027935831,0.05409006,138.39,138.37,34.74]
[1725027936037,0.05409006,138.39,138.38,3.6126]
[1725027937834,1.3082,138.47,138.37,34.74]
[1725027938034,1.3082,138.47,138.41,34.74]
[1725027938236,4.99082548,138.47,138.39,34.74]
[1725027938438,3.611,138.45,138.41,3.6116]